bitfinex/quotes_ETHUSD_20250314
["timestamp","ask_amount","ask_price","bid_price","bid_amount"]
[1741978842635,0.0861,1939.2,1938.9,5.15755]
[1741978842834,3.0861,1939.2,1938.9,5.15755]
[1741978843039,8.24288,1939.2,1938.8,5.1578]
[1741978843240,3.0861,1939.2,1938.9,5.15754]
[1741978843640,8.24291,1939.2,1938.8,10.31535]
[1741978843953,8.24291,1939.2,1938.8,5.15766]
[1741978844856,3.0861,1939.2,1938.9,5.15755]
[1741978845243,3.0861,1939.2,1938.9,10.31494]
[1741978845442,3.0861,1939.2,1939.0,5.15718]
[1741978845753,3.0861,1939.2,1938.9,5.15751]
[1741978846453,5.15625,1939.4,1938.9,1.854123]
[1741978846454,0.0861,1939.4,1938.9,1.854123]
[1741978846631,3.0861,1939.4,1939.1,5.15685]
[1741978847031,8.24243,1939.4,1939.0,5.15728]
[1741978847453,8.24243,1939.4,1939.0,10.31439]
[1741978848051,8.24243,1939.4,1939.0,5.15711]
[1741978848621,8.24243,1939.4,1939.0,10.31424]
[1741978849450,8.24243,1939.4,1939.0,10.31426]
[1741978849759,6.1,1939.5,1939.0,1.113686]
[1741978849933,6.1,1939.5,1939.3,5.15633]
[1741978850255,6.1,1939.5,1939.2,5.98685]
[1741978850560,6.1,1939.5,1939.2,5.15673]
[1741978850944,11.25608,1939.5,1939.1,5.98709]
[1741978851448,5.15624,1939.4,1939.1,0.8301]
[1741978851655,5.15624,1939.4,1939.0,5.15729]
[1741978851852,0.0861,1939.3,1939.0,5.15729]
[1741978852063,5.24273,1939.3,1938.8,5.15775]
[1741978852360,5.24274,1939.3,1938.9,5.15744]
[1741978852529,0.0861,1939.3,1939.0,5.1572]
[1741978852733,5.24272,1939.3,1938.9,5.15744]
[1741978852934,10.39945,1939.3,1938.9,5.15744]
[1741978853260,5.24272,1939.3,1938.9,5.15744]
[1741978854350,5.24272,1939.3,1938.9,10.31487]
[1741978855137,0.0861,1939.3,1939.0,5.15729]
[1741978857180,0.0861,1939.3,1939.0,10.31424]
[1741978857385,0.0861,1939.3,1939.0,5.1571]
[1741978858853,8.15625,1939.4,1939.0,5.9396]
[1741978859054,8.15625,1939.4,1939.0,11.09669]
[1741978859364,5.15654,1939.3,1939.0,5.15709]
[1741978859561,10.106084,1939.4,1939.0,10.31424]
[1741978859884,10.106084,1939.4,1939.1,5.15698]
[1741978860257,6.1861,1939.5,1939.1,5.15686]
[1741978860457,11.34211,1939.5,1939.2,5.15667]
[1741978860657,16.49832,1939.5,1939.1,5.92406]
[1741978860962,11.34211,1939.5,1939.1,11.08094]
[1741978861157,0.0861,1939.3,1938.9,5.15742]
[1741978861363,5.15677,1939.2,1938.9,5.15742]
[1741978861988,5.15677,1939.2,1938.7,5.92525]
[1741978862188,0.0861,1939.0,1938.7,5.15805]
[1741978862686,5.24349,1939.0,1938.6,5.92932]
[1741978862888,5.15761,1938.9,1938.5,5.15852]
[1741978863390,5.15768,1938.9,1938.5,10.31695]
[1741978863888,3.0,1938.9,1938.6,5.15815]
[1741978864088,3.0,1938.9,1938.7,5.15808]
[1741978864285,3.0861,1939.1,1938.7,0.82727927]
[1741978864480,8.24333,1939.1,1938.7,5.93369]
[1741978864717,8.24333,1939.1,1938.7,5.15799]
[1741978864965,8.24333,1939.1,1938.5,0.7757]
[1741978864966,4.416533,1939.1,1938.5,0.7757]
[1741978865260,5.15797,1938.8,1938.4,11.14876]
[1741978865529,3.0861,1938.9,1938.5,5.15849]
[1741978865815,8.24369,1938.9,1938.5,5.15849]
[1741978866031,5.15784,1938.8,1938.4,5.15882]
[1741978866738,5.15824,1938.7,1938.3,11.09384]
[1741978867109,5.15824,1938.7,1938.4,5.15884]
[1741978867304,1.031608,1938.7,1938.4,5.15884]
[1741978867519,5.15784,1938.8,1938.4,5.15884]
[1741978867904,5.15784,1938.8,1938.4,10.31754]
[1741978868208,5.15784,1938.8,1938.4,5.1587]
[1741978868530,5.15788,1938.8,1938.4,5.1587]
[1741978869105,5.15788,1938.8,1938.4,10.3174]
[1741978870156,5.15788,1938.8,1938.4,5.1587]
[1741978871232,5.24366,1938.9,1938.5,5.15862]
[1741978871428,12.08963376,1938.9,1938.5,5.15846]
[1741978871825,5.15785,1938.8,1938.5,5.15846]
[1741978872045,5.15836,1938.6,1938.3,0.7757]
[1741978872292,0.0861,1938.5,1938.1,5.15958]
[1741978872469,0.0861,1938.5,1938.2,5.15933]
[1741978872675,5.24488,1938.5,1938.1,5.15958]
[1741978872952,5.24488,1938.5,1938.1,10.31908]
[1741978873340,0.0861,1938.5,1938.1,10.31908]
[1741978873539,0.0861,1938.5,1938.2,5.15929]
[1741978874045,5.24424,1938.7,1938.3,5.15911]
[1741978874245,6.274764,1938.7,1938.3,5.159]
[1741978874424,6.274764,1938.7,1938.3,10.318]
[1741978874623,6.274764,1938.7,1938.4,5.15887]
[1741978875223,1.116624,1938.7,1938.4,5.15887]
[1741978875419,0.0861,1938.7,1938.4,5.15878]
[1741978875646,5.1471,1938.8,1938.4,5.15889]
[1741978875850,5.061,1938.8,1938.5,5.15844]
[1741978876050,5.061,1938.8,1938.6,5.1583]
[1741978877564,16.78529755,1939.0,1938.6,5.1583]
[1741978877856,3.0,1938.8,1938.6,5.1583]
[1741978878228,3.0,1938.8,1938.5,5.15844]
[1741978878758,3.0,1938.8,1938.5,10.3169]
[1741978879559,3.0,1938.8,1938.5,5.15844]
[1741978879959,3.0,1938.8,1938.5,10.31691]
[1741978880261,3.0861,1938.8,1938.5,5.15844]
[1741978881479,8.24395,1938.8,1938.4,5.15889]
[1741978881633,8.24395,1938.8,1938.4,10.31762]
[1741978881833,8.24395,1938.8,1938.5,5.1586]
[1741978883472,4.426253,1938.8,1938.3,5.15915]
[1741978883679,0.0861,1938.5,1938.2,5.1593]
[1741978883969,0.0861,1938.5,1938.3,5.15913]
[1741978884170,10.40242,1938.7,1938.3,10.31805]
[1741978884347,10.40242,1938.7,1938.3,5.15892]
[1741978884542,5.15838,1938.6,1938.3,5.15892]
[1741978885371,5.15838,1938.6,1938.2,5.1594]
[1741978885565,11.357191,1938.6,1938.2,5.15926]
[1741978885877,11.357261,1938.6,1938.2,5.15926]
[1741978886032,5.15871,1938.5,1938.2,5.15926]
[1741978886235,5.15871,1938.5,1938.1,5.91659]
[1741978886470,5.15871,1938.5,1938.1,11.07614]
[1741978886776,5.15871,1938.5,1938.2,5.15941]
[1741978887159,6.198641,1938.6,1938.2,5.15941]
[1741978887339,1.040261,1938.6,1938.3,5.15903]
[1741978887753,5.24421,1938.7,1938.3,5.15896]
[1741978887955,8.15786,1938.8,1938.5,5.15859]
[1741978888160,3.0861,1938.9,1938.5,5.15844]
[1741978888358,0.0861,1938.9,1938.6,5.15825]
[1741978888878,5.24376,1938.9,1938.6,5.15825]
[1741978889044,7.70350092,1938.9,1938.6,5.15825]
[1741978889540,11.25754,1939.0,1938.6,5.15823]
[1741978889741,6.1,1939.0,1938.8,5.15757]
[1741978889942,8.1461,1939.1,1938.8,5.15757]
[1741978890177,8.06,1939.1,1938.8,10.31521]
[1741978890547,13.21716,1939.1,1938.7,5.15809]
[1741978890749,0.0861,1939.0,1938.7,5.15809]
[1741978890962,5.24356,1939.0,1938.6,5.15835]
[1741978891159,10.40105,1939.0,1938.6,5.15835]
[1741978891492,5.15756,1938.9,1938.5,5.92762]
[1741978891694,5.15793,1938.8,1938.4,5.15874]
[1741978892003,5.2442,1938.7,1938.4,5.15874]
[1741978893003,5.15786,1938.8,1938.4,10.31749]
[1741978893199,11.356034,1938.8,1938.4,5.15874]
[1741978893366,5.15811,1938.7,1938.3,5.92809]
[1741978894063,5.15811,1938.7,1938.3,5.92798]
[1741978894798,9.198024,1938.8,1938.4,5.15888]
[1741978894965,5.15816,1938.7,1938.4,5.15888]
[1741978895159,5.15811,1938.7,1938.3,5.92815]
[1741978895380,6.5937234,1938.7,1938.3,11.08719]
[1741978895562,6.5937234,1938.7,1938.3,5.92804]
[1741978896095,6.5937234,1938.7,1938.3,11.08702]
[1741978896392,6.5937234,1938.7,1938.3,5.92798]
[1741978897499,6.5937234,1938.7,1938.3,11.08698]
[1741978897798,1.4356134,1938.7,1938.4,5.15871]
[1741978898001,6.5937034,1938.7,1938.4,5.15871]
[1741978899113,6.5937034,1938.7,1938.3,5.92806]
[1741978899483,6.5937034,1938.7,1938.4,5.15887]
[1741978899684,6.5937034,1938.7,1938.3,5.92806]
[1741978900686,6.5937034,1938.7,1938.3,5.15906]
[1741978900882,0.0861,1938.6,1938.3,5.15906]
[1741978901093,0.0861,1938.6,1938.3,5.15904]
[1741978901292,0.0861,1938.6,1938.3,5.15901]
[1741978901577,5.24457,1938.6,1938.2,5.97968]
[1741978901798,11.58695934,1938.6,1938.2,5.15938]
[1741978901999,5.15893,1938.4,1938.0,11.15166]
[1741978902378,5.24527,1938.3,1937.9,0.1134822]
[1741978902708,5.684067,1938.2,1937.9,0.1134822]
[1741978902875,0.524527,1938.2,1937.9,5.2736822]
[1741978903080,5.24533,1938.3,1937.9,5.2736822]
[1741978903401,0.0861,1938.3,1937.9,5.2735222]
[1741978903603,0.0861,1938.3,1938.0,5.15995]
[1741978904406,6.1,1938.4,1938.1,5.15956]
[1741978905810,11.25899,1938.4,1938.0,5.15993]
[1741978906015,13.415273,1938.4,1938.0,5.15978]
[1741978906413,13.415273,1938.4,1937.9,0.1134822]
[1741978906609,13.415273,1938.4,1938.0,5.15977]
[1741978907010,13.415273,1938.4,1938.0,10.31957]
[1741978907411,13.415273,1938.4,1938.1,5.15969]
[1741978907609,8.256283,1938.4,1938.1,5.15959]
[1741978907817,6.1,1938.4,1938.2,5.15917]
[1741978908017,6.1,1938.4,1938.1,5.93199]
[1741978908218,5.1451,1938.5,1938.1,5.93192]
[1741978908419,5.1451,1938.5,1938.2,5.15921]
[1741978908721,10.30388,1938.5,1938.0,5.15995]
[1741978909020,5.15902,1938.4,1938.0,10.31971]
[1741978909323,6.175488,1938.5,1938.2,5.15939]
[1741978910027,11.334118,1938.5,1938.0,5.15975]
[1741978910228,11.334118,1938.5,1938.1,5.15962]
[1741978910517,11.334118,1938.5,1938.1,5.15952]
[1741978911019,11.334118,1938.5,1938.1,10.31908]
[1741978911322,6.175488,1938.5,1938.2,5.1593]
[1741978914023,5.1451,1938.5,1938.2,5.1593]
[1741978914631,6.1861,1938.7,1938.3,5.15892]
[1741978914816,11.34422,1938.7,1938.3,5.15892]
[1741978915894,6.1861,1938.7,1938.4,5.15887]
[1741978916715,11.34426,1938.7,1938.3,5.15892]
[1741978918128,11.34426,1938.7,1938.3,10.31791]
[1741978918330,6.1861,1938.7,1938.4,5.15886]
[1741978918490,6.1861,1938.7,1938.3,5.15892]
[1741978918491,6.1,1938.7,1938.5,5.1586]
[1741978920032,10.30168,1938.9,1938.5,5.1586]
[1741978920202,1.030168,1938.8,1938.5,5.1586]
[1741978920402,10.30168,1938.9,1938.5,10.31707]
[1741978920631,10.30168,1938.9,1938.5,5.15847]
[1741978920826,10.30168,1938.9,1938.5,10.31693]
[1741978921028,10.30168,1938.9,1938.5,5.91566]
[1741978921232,6.1,1939.0,1938.7,5.15792]
[1741978921403,10.30117,1939.1,1938.7,10.31585]
[1741978922033,5.24317,1939.1,1938.7,10.31585]
[1741978922437,5.24317,1939.1,1938.7,10.31582]
[1741978922616,3.0861,1939.1,1938.7,5.1579]
[1741978922815,8.24313,1939.1,1938.8,5.15779]
[1741978923437,9.58799094,1939.1,1938.5,0.7572]
[1741978923736,5.15882,1938.5,1938.1,11.9763]
[1741978923938,5.057,1938.6,1938.2,5.15918]
[1741978924234,5.057,1938.6,1938.1,5.98648]
[1741978924235,11.855671,1938.6,1938.1,5.98648]
[1741978924400,5.15905,1938.4,1938.0,5.15995]
[1741978924601,5.15929,1938.3,1937.9,6.0487922]
[1741978924920,5.15919,1938.3,1938.0,5.15994]
[1741978925123,5.15892,1938.4,1938.0,5.15994]
[1741978925308,11.358376,1938.4,1938.0,5.15994]
[1741978925514,5.15927,1938.3,1937.9,6.0487822]
[1741978925824,6.199426,1938.4,1937.9,6.0486322]
[1741978926026,5.15906,1938.4,1938.0,5.15985]
[1741978927552,5.15906,1938.4,1938.1,5.15969]
[1741978927711,3.0861,1938.5,1938.1,5.15956]
[1741978927913,8.1431,1938.5,1938.2,5.15938]
[1741978928114,8.1431,1938.5,1938.1,10.3191]
[1741978928315,13.30173,1938.5,1938.1,10.3191]
[1741978928573,15.3117521,1938.5,1938.0,5.15984]
[1741978928827,15.3118221,1938.5,1938.1,5.15945]
[1741978929054,5.1431,1938.5,1938.2,5.1594]
[1741978929560,16.40129,1938.7,1938.4,5.15888]
[1741978929870,5.057,1938.7,1938.3,5.92203]
[1741978930157,10.2152,1938.7,1938.3,5.92195]
[1741978931209,10.2152,1938.7,1938.3,5.92189]
[1741978931860,5.057,1938.7,1938.4,5.15877]
[1741978932347,5.057,1938.7,1938.5,5.15858]
[1741978932760,5.057,1938.7,1938.5,10.31707]
[1741978933372,11.34368,1938.9,1938.5,10.31698]
[1741978933561,5.24453,1938.6,1938.1,5.95077]
[1741978933761,5.15863,1938.5,1938.2,0.595077]
[1741978933960,10.31747,1938.5,1938.1,5.95073]
[1741978934167,5.15863,1938.5,1938.1,5.15953]
[1741978935165,5.15863,1938.5,1938.2,5.15938]
[1741978935484,10.30146,1938.6,1938.2,5.15931]
[1741978935788,15.46001,1938.6,1938.2,5.15931]
[1741978935988,5.15865,1938.5,1938.2,5.15931]
[1741978936292,10.30146,1938.6,1938.2,5.15931]
[1741978936587,10.30146,1938.6,1938.2,10.31862]
[1741978936798,0.0861,1938.6,1938.3,5.15914]
[1741978936964,10.30029,1938.7,1938.3,5.15914]
[1741978937163,15.45858,1938.7,1938.3,5.15914]
[1741978937985,5.15836,1938.6,1938.2,5.94001]
[1741978938555,10.30021,1938.7,1938.3,5.159]
[1741978938756,0.0861,1938.2,1937.9,0.1134822]
[1741978938989,5.15972,1938.1,1937.9,0.1134822]
[1741978939377,5.15919,1938.3,1937.9,5.2735022]
[1741978939701,5.15919,1938.3,1937.9,5.2736122]
[1741978939702,5.15944,1938.2,1937.9,5.2736122]
[1741978939998,5.15919,1938.3,1937.9,5.2736122]
[1741978939999,10.31853,1938.3,1937.9,5.2736122]
[1741978940203,5.15945,1938.2,1937.9,0.1134822]
[1741978940696,10.31908,1938.2,1937.9,0.1134822]
[1741978940896,5.15969,1938.1,1937.9,0.1134822]
[1741978941707,10.3196,1938.1,1937.9,0.1134822]
[1741978942006,6.27775,1938.1,1937.9,0.1134822]
[1741978942221,5.15995,1938.0,1937.9,0.1134822]
[1741978943210,10.40569,1938.1,1937.9,0.1134822]
[1741978943620,5.24579,1938.1,1937.9,0.1134822]
[1741978944177,5.24605,1938.0,1937.9,0.1134822]
[1741978944380,6.286624,1938.0,1937.9,0.1134822]
[1741978946418,5.24605,1938.0,1937.9,0.1134822]
[1741978946615,0.0861,1938.0,1937.9,0.1134822]
[1741978946823,5.15969,1938.1,1937.9,0.1134822]
[1741978947126,5.15995,1938.0,1937.9,0.1134822]
[1741978947522,5.24605,1938.0,1937.9,0.1134822]
[1741978947836,6.286624,1938.0,1937.9,0.1134822]
[1741978948612,5.24605,1938.0,1937.9,0.1134822]
[1741978948817,5.15995,1938.0,1937.9,0.1134822]
[1741978951143,5.55386117,1938.1,1937.9,0.1134822]
[1741978951523,10.71377117,1938.1,1937.9,0.1134822]
[1741978951849,5.15969,1938.1,1937.9,0.1134822]
[1741978952356,10.21569,1938.1,1937.9,0.1134822]
[1741978952808,15.37558,1938.1,1937.9,0.1134822]
[1741978953014,10.21569,1938.1,1937.9,0.1134822]
[1741978953214,5.056,1938.1,1937.9,0.1134822]
[1741978953959,3.0,1938.3,1938.0,5.15994]
[1741978954120,5.056,1938.3,1938.0,5.15994]
[1741978954314,5.2451,1938.4,1938.0,5.15994]
[1741978954315,5.056,1938.4,1938.1,5.97384]
[1741978954517,24.20119994,1938.6,1938.1,5.97384]
[1741978954751,30.21938199,1938.6,1938.2,10.31868]
[1741978954949,30.21938199,1938.6,1938.2,5.1593]
[1741978955202,5.15863,1938.5,1938.1,5.97398]
[1741978955503,5.15863,1938.5,1938.1,11.13352]
[1741978956404,30.21938199,1938.6,1938.2,5.15935]
[1741978956589,30.21938199,1938.6,1938.2,10.31864]
[1741978956801,30.21938199,1938.6,1938.2,5.15929]
[1741978957805,35.37794199,1938.6,1938.2,5.15929]
[1741978958006,7.8680523,1938.5,1938.2,5.15929]
[1741978958509,7.8680523,1938.5,1938.1,5.97397]
[1741978958828,5.15895,1938.4,1938.1,0.8143]
[1741978959195,7.9541523,1938.5,1938.1,5.97396]
[1741978959767,3.0,1938.2,1937.9,6.0692422]
[1741978960596,14.11346523,1938.4,1938.0,5.15986]
[1741978960777,5.15928,1938.3,1937.9,6.0692422]
[1741978961321,10.31862,1938.3,1937.9,6.0692422]
[1741978961693,5.15994,1938.1,1937.9,0.1134822]
[1741978962010,5.1598,1938.1,1937.9,0.1134822]
[1741978962647,5.15995,1938.0,1937.9,0.1134822]
[1741978962807,12.29214994,1938.0,1937.9,0.1134822]
[1741978964032,8.24605,1938.0,1937.9,0.1134822]
[1741978964235,3.0,1938.0,1937.9,0.1134822]
[1741978964731,5.15989,1938.1,1937.9,0.1134822]
[1741978965311,0.515989,1938.0,1937.9,0.1134822]
[1741978965514,5.675939,1938.0,1937.9,0.1134822]
[1741978965924,8.675939,1938.0,1937.9,0.1134822]
[1741978967440,8.762039,1938.0,1937.9,0.1134822]
[1741978967737,13.35813894,1938.0,1937.9,0.1134822]
[1741978968257,9.312039,1938.0,1937.9,0.1134822]
[1741978968407,8.762039,1938.0,1937.9,0.1134822]
[1741978970865,12.80813894,1938.0,1937.9,0.1134822]
[1741978971739,8.762039,1938.0,1937.9,0.1134822]
[1741978971958,8.675939,1938.0,1937.9,0.1134822]
[1741978973170,12.80813894,1938.0,1937.9,0.1134822]
[1741978973648,13.06352618,1938.0,1937.9,0.1134822]
[1741978973848,13.61352618,1938.0,1937.9,0.1134822]
[1741978974943,13.35813894,1938.0,1937.9,0.1134822]
[1741978977688,13.61636039,1938.0,1937.9,0.1134822]
[1741978978397,13.61636039,1938.0,1937.9,2.2e-06]
[1741978978605,14.23352692,1938.0,1937.9,2.2e-06]
[1741978980199,19.55835526,1938.0,1937.9,2.2e-06]
[1741978980903,24.99535526,1938.0,1937.9,2.2e-06]
[1741978983790,24.99535526,1938.0,1937.1,0.8215]
[1741978983791,8.16208,1937.2,1937.1,0.01]
[1741978983973,13.21708,1937.2,1937.1,0.01]
[1741978988090,13.60333375,1937.2,1937.1,0.01]
[1741978989309,8.055,1937.2,1937.1,0.01]
[1741978989607,8.055,1937.2,1937.1,0.8354]
[1741978990180,13.21708,1937.2,1937.1,0.8354]
[1741978990381,15.054985,1937.2,1937.1,0.8354]
[1741978990581,15.054985,1937.2,1937.1,0.01]
[1741978991288,13.21708,1937.2,1937.1,0.01]
[1741978992088,5.16111,1937.6,1937.2,5.16196]
[1741978992423,5.16123,1937.6,1937.4,0.8267]
[1741978992744,5.055,1937.8,1937.4,0.8267]
[1741978992949,10.21554,1937.8,1937.5,0.756]
[1741978993313,5.16078,1937.7,1937.5,0.756]
[1741978993516,8.16078,1937.7,1937.5,0.756]
[1741978994250,13.32179,1937.7,1937.5,0.756]
[1741978994952,13.32168,1937.7,1937.5,0.756]
[1741978995126,8.16078,1937.7,1937.5,0.756]
[1741978995319,5.16102,1937.6,1937.5,0.756]
[1741978995518,5.16157,1937.4,1937.2,0.7591]
[1741978995719,10.32333,1937.4,1937.2,0.7591]
[1741978995951,5.16182,1937.3,1937.2,0.7591]
[1741978996758,8.16182,1937.3,1937.2,0.7591]
[1741978997548,3.0,1937.3,1937.2,0.7591]
[1741978998744,5.054,1937.5,1937.2,5.92102]
[1741978999558,8.16119,1937.6,1937.2,5.92102]
[1741979000259,8.16119,1937.6,1937.2,11.08292]
[1741979000459,8.16119,1937.6,1937.3,0.7675]
[1741979000642,3.0,1937.6,1937.3,5.1617]
[1741979000957,3.0,1937.6,1937.4,0.7675]
[1741979002129,9.482604,1937.6,1937.4,0.7675]
[1741979002554,5.16129,1937.5,1937.4,0.7675]
[1741979003161,9.482604,1937.6,1937.4,0.7675]
[1741979005071,4.321484,1937.6,1937.4,0.7675]
[1741979005357,3.0,1937.6,1937.4,0.7675]
[1741979005552,8.16106,1937.6,1937.4,0.7675]
[1741979006740,6.1,1937.9,1937.5,5.16129]
[1741979006943,13.2135,1937.8,1937.5,5.16129]
[1741979007145,3.0,1937.8,1937.6,0.7812]
[1741979007744,3.0,1937.8,1937.6,5.94221]
[1741979008346,3.0,1937.8,1937.6,0.7812]
[1741979008562,11.34511,1938.4,1937.7,5.94172]
[1741979008763,5.15947,1938.2,1937.9,0.7812]
[1741979009143,10.48196045,1938.3,1937.9,0.7812]
[1741979009347,8.15947,1938.2,1937.9,0.7812]
[1741979009555,10.48195045,1938.3,1937.9,5.94128]
[1741979009739,11.25892,1938.4,1938.0,5.15985]
[1741979009933,17.437812,1938.4,1938.1,0.7814]
[1741979010137,3.0,1938.3,1938.1,0.7814]
[1741979010335,5.15931,1938.3,1938.1,0.7814]
[1741979010763,7.225892,1938.4,1938.1,0.7814]
[1741979010964,3.0,1938.3,1938.1,0.7814]
[1741979011147,3.0,1938.3,1938.2,5.15942]
[1741979011491,3.0,1938.3,1938.1,5.94101]
[1741979011651,3.0,1938.3,1938.1,0.7814]
[1741979012665,8.15917,1938.3,1938.1,0.7814]
[1741979013081,3.0,1938.3,1938.1,5.94098]
[1741979013285,3.0,1938.3,1938.1,0.7814]
[1741979014067,5.15942,1938.2,1938.1,0.7814]
[1741979014261,5.15942,1938.2,1937.6,5.0636839]
[1741979014262,5.15976,1938.1,1937.9,0.81]
[1741979014772,8.15918,1938.3,1937.9,5.97019]
[1741979014987,13.31859,1938.3,1937.9,5.97019]
[1741979015286,8.15918,1938.3,1937.9,5.97012]
[1741979015461,5.15944,1938.2,1937.9,5.97012]
[1741979015662,10.31902,1938.2,1937.9,0.81]
[1741979015987,5.15983,1938.1,1937.9,0.81]
[1741979016155,5.15948,1938.2,1937.9,0.81]
[1741979016355,3.0,1938.2,1937.9,5.1602]
[1741979016557,13.31916,1938.2,1937.8,5.16036]
[1741979017087,8.15949,1938.2,1937.8,5.16036]
[1741979017480,13.31915,1938.2,1937.8,5.16036]
[1741979017697,5.1602,1938.0,1937.7,0.8005]
[1741979017877,5.16031,1937.9,1937.7,0.8005]
[1741979018081,5.16002,1938.0,1937.7,0.8005]
[1741979018263,5.051,1938.1,1937.8,5.16039]
[1741979018591,10.21071,1938.1,1937.8,5.16039]
[1741979018786,10.21071,1938.1,1937.7,5.96118]
[1741979018960,5.15995,1938.0,1937.7,0.8005]
[1741979019573,5.15995,1938.0,1937.7,5.9612]
[1741979021794,11.6658335,1938.1,1937.7,5.96114]
[1741979022391,6.1,1938.3,1937.8,0.8115]
[1741979022591,5.15853,1938.6,1938.2,5.97082]
[1741979022795,10.20953,1938.6,1938.2,5.97082]
[1741979023394,3.0,1938.5,1938.2,5.97082]
[1741979023992,5.051,1938.6,1938.3,5.15915]
[1741979024165,3.0,1938.6,1938.4,0.8305]
[1741979024781,8.15837,1938.6,1938.4,0.8305]
[1741979024992,3.0,1938.7,1938.5,5.15838]
[1741979025187,3.0,1938.7,1938.4,0.8305]
[1741979025495,5.15847,1938.6,1938.4,0.8305]
[1741979025900,5.15862,1938.5,1938.4,0.8305]
[1741979026200,10.31747,1938.5,1938.2,0.8305]
[1741979026410,5.15862,1938.5,1938.2,0.8305]
[1741979027202,5.15893,1938.4,1938.2,0.8305]
[1741979027497,6.19032,1938.5,1938.2,0.8305]
[1741979027677,1.0317,1938.5,1938.2,0.8305]
[1741979027869,8.15868,1938.5,1938.2,0.8305]
[1741979028289,3.0,1938.5,1938.2,6.04145039]
[1741979028496,3.0,1938.5,1938.2,5.98986]
[1741979029573,3.0,1938.5,1938.2,6.04144905]
[1741979029773,3.0,1938.5,1938.2,11.20068905]
[1741979029975,3.0,1938.5,1938.3,5.15909]
[1741979030174,3.0,1938.6,1938.3,5.15909]
[1741979030399,10.10003,1938.6,1938.2,5.98974]
[1741979030605,15.25858,1938.6,1938.2,5.98974]
[1741979031397,10.10003,1938.6,1938.2,5.98974]
[1741979031803,5.15871,1938.5,1938.2,0.8305]
[1741979032602,15.25861,1938.6,1938.2,5.9898]
[1741979032805,10.10003,1938.6,1938.2,6.04138905]
[1741979033105,8.15839,1938.6,1938.2,5.9898]
[1741979033400,8.15839,1938.6,1938.2,11.1491]
[1741979033601,3.0,1938.6,1938.3,5.15911]
[1741979033906,8.15836,1938.6,1938.3,5.15911]
[1741979034401,8.15836,1938.6,1938.2,0.88208905]
[1741979034602,8.15836,1938.6,1938.2,6.04145905]
[1741979034808,8.15836,1938.6,1938.2,6.04133905]
[1741979036008,8.15836,1938.6,1938.2,11.20059905]
[1741979036195,8.15836,1938.6,1938.2,5.98975]
[1741979036375,8.15836,1938.6,1938.2,6.04133905]
[1741979036774,10.605006,1938.6,1938.2,5.98975]
[1741979037204,10.605006,1938.6,1938.2,11.14899]
[1741979037608,10.605006,1938.6,1938.3,5.1591]
[1741979038276,3.0,1938.6,1938.5,0.7674]
[1741979038488,6.1,1938.7,1938.5,5.92593]
[1741979038694,3.0,1938.8,1938.6,5.15836]
[1741979038902,3.0,1938.8,1938.5,5.92599]
[1741979039406,3.0,1938.8,1938.6,5.15817]
[1741979039580,11.25704,1939.1,1938.8,0.7674]
[1741979039986,3.0,1939.0,1938.8,0.7674]
[1741979040176,3.0,1939.0,1938.8,11.08279]
[1741979040371,10.20483,1939.2,1938.8,11.08273]
[1741979040889,15.36184,1939.2,1938.8,5.92506]
[1741979041195,12.651014,1939.2,1938.8,5.92506]
[1741979041388,12.651014,1939.2,1938.8,11.08268]
[1741979041574,17.807994,1939.2,1938.8,5.92502]
[1741979041897,12.651014,1939.2,1938.8,5.92502]
[1741979043015,12.651014,1939.2,1938.9,5.15755]
[1741979043591,12.651014,1939.2,1938.8,5.92521]
[1741979043791,10.20483,1939.2,1938.8,11.08285]
[1741979043992,10.20483,1939.2,1938.8,5.92504]
[1741979044216,10.20483,1939.2,1938.8,11.08272]
[1741979044386,8.047,1939.3,1938.9,5.15755]
[1741979044721,8.1565,1939.3,1938.9,5.1575]
[1741979045084,13.31319,1939.3,1938.9,5.1575]
[1741979045526,8.1565,1939.3,1938.9,10.31488]
[1741979045684,13.31318,1939.3,1938.9,5.15738]
[1741979045884,8.1565,1939.3,1938.9,5.15738]
[1741979046111,5.15687,1939.2,1938.8,5.92522]
[1741979046779,0.815687,1939.2,1938.8,0.7674]
[1741979047127,5.15829,1938.7,1938.3,5.15904]
[1741979047415,5.15764,1938.9,1938.5,5.92597]
[1741979047629,5.15786,1938.8,1938.5,0.7674]
[1741979048605,5.15812,1938.7,1938.5,0.7674]
[1741979049249,5.1579,1938.8,1938.5,0.7674]
[1741979050149,8.24347,1939.0,1938.5,0.7674]
[1741979050311,3.0,1938.8,1938.6,5.15814]
[1741979050644,8.15792,1938.8,1938.5,0.7674]
[1741979050848,3.0,1938.8,1938.5,0.7674]
[1741979051145,3.0,1938.8,1938.6,5.15833]
[1741979051343,0.824347,1938.9,1938.6,5.15819]
[1741979051517,0.824347,1938.9,1938.5,0.7674]
[1741979051518,3.0,1938.8,1938.5,11.08434]
[1741979051713,10.20438,1939.0,1938.6,5.15827]
[1741979052049,10.20438,1939.0,1938.6,10.31645]
[1741979052242,10.20438,1939.0,1938.6,5.15818]
[1741979052433,15.36191,1939.0,1938.6,5.15818]
[1741979053316,10.20438,1939.0,1938.6,5.15818]
[1741979054237,5.047,1939.0,1938.6,6.266597]
[1741979054436,3.0,1939.0,1938.7,5.97697]
[1741979055144,21.46029,1939.1,1938.7,5.97697]
[1741979055507,5.15737,1939.0,1938.7,0.819]